bitfinex/quotes_ETHUSD_20240822
["timestamp","ask_amount","ask_price","bid_price","bid_amount"]
[1724352814110,3.82156,2616.8,2616.1,3.82239]
[1724352814264,0.03689054,2616.7,2616.1,4.11612063]
[1724352814455,3.82183,2616.6,2616.1,7.93846063]
[1724352814651,0.03689054,2616.7,2616.6,3.82175]
[1724352814897,0.79966824,2617.2,2616.9,3.82128]
[1724352815051,3.82116,2617.1,2616.2,3.79384606]
[1724352815248,3.82116,2617.1,2615.7,3.82295]
[1724352815249,2.4385,2616.9,2616.1,3.82243]
[1724352815448,3.82158,2616.8,2615.7,2.3843]
[1724352815665,3.23816824,2616.9,2616.4,3.82194]
[1724352815879,3.23816824,2616.9,2616.2,7.64452]
[1724352815880,2.4385,2616.9,2616.2,7.64452]
[1724352816062,3.8215,2616.8,2616.2,3.82219]
[1724352816264,3.82161,2616.7,2616.1,3.82235]
[1724352816552,3.82161,2616.7,2616.0,3.82251]
[1724352816553,0.03560213,2616.6,2616.0,3.82251]
[1724352816764,0.03560213,2616.6,2616.3,3.82214]
[1724352816969,3.82121,2617.0,2616.5,3.82189]
[1724352817200,0.03560213,2616.5,2616.3,7.64425]
[1724352817415,2.298,2616.4,2615.9,3.82272]
[1724352817578,6.11963,2616.7,2616.0,6.82252]
[1724352817785,0.03560213,2616.3,2616.0,6.82252]
[1724352817978,6.11963,2616.7,2616.0,6.82252]
[1724352818214,9.94132,2616.7,2616.2,3.82233]
[1724352818521,9.94132,2616.7,2615.4,3.82346]
[1724352818522,3.82268,2616.0,2615.4,3.82346]
[1724352819006,7.64542,2616.0,2615.4,3.82346]
[1724352819215,2.4159,2615.8,2615.0,3.82399]
[1724352819508,2.4159,2615.8,2615.3,3.82362]
[1724352820068,2.4159,2615.8,2615.0,0.382399]
[1724352820269,6.23842,2616.1,2614.7,2.2711]
[1724352820500,3.82211,2616.4,2616.0,3.82248]
[1724352820501,2.4159,2616.4,2616.0,3.82248]
[1724352820679,7.73184,2616.6,2616.0,3.82248]
[1724352820680,3.91,2616.6,2616.2,3.82232]
[1724352821219,2.303,2616.5,2615.6,3.82307]
[1724352821368,3.82242,2616.2,2615.6,3.82307]
[1724352821818,6.12555,2616.1,2615.5,3.82326]
[1724352822568,3.82267,2616.0,2615.4,3.82344]
[1724352822790,3.82267,2616.0,2615.5,6.82334]
[1724352823511,2.303,2616.1,2615.5,6.82334]
[1724352823759,3.82267,2616.0,2615.5,3.0]
[1724352823940,3.82294,2615.8,2615.2,3.82367]
[1724352824125,3.82294,2615.8,2615.3,6.82363]
[1724352824326,3.82331,2615.6,2615.0,3.82398]
[1724352824538,3.82331,2615.6,2615.0,7.64798]
[1724352824846,3.82344,2615.5,2614.9,3.82414]
[1724352825160,3.82353,2615.4,2614.9,3.82414]
[1724352825657,3.82344,2615.5,2615.0,3.82401]
[1724352825806,3.82344,2615.5,2614.9,3.82411]
[1724352826616,3.82356,2615.4,2614.9,3.82411]
[1724352826862,3.82352,2615.4,2614.9,3.82411]
[1724352828217,3.82387,2615.2,2614.7,3.82444]
[1724352828619,7.64778,2615.2,2614.7,3.82444]
[1724352829074,2.3831,2615.3,2614.9,3.8242]
[1724352829233,2.3831,2615.3,2614.2,6.265]
[1724352829234,3.8238,2615.2,2614.2,6.50898]
[1724352829564,3.8238,2615.2,2614.5,3.82482]
[1724352829737,3.8238,2615.2,2614.6,3.0]
[1724352830135,3.8238,2615.2,2614.0,3.82551]
[1724352830136,2.3948,2614.9,2614.0,3.82551]
[1724352830351,2.3948,2614.9,2614.4,3.82488]
[1724352831022,2.3948,2614.9,2613.8,2.3975]
[1724352831023,2.3948,2614.9,2614.1,3.82528]
[1724352831263,2.3948,2614.9,2613.8,2.3975]
[1724352831264,3.82447,2614.8,2614.2,3.82524]
[1724352831506,3.82447,2614.8,2614.3,3.82511]
[1724352832072,2.3948,2614.7,2614.2,3.82517]
[1724352832300,2.3948,2614.7,2614.2,7.65034]
[1724352832470,2.3948,2614.7,2614.5,3.8248]
[1724352833058,2.3948,2614.7,2614.1,3.82534]
[1724352833263,2.3948,2614.7,2613.7,2.3975]
[1724352833264,2.3948,2614.7,2614.3,3.82503]
[1724352833463,2.3948,2614.7,2614.5,3.82482]
[1724352833787,0.59956328,2615.2,2614.5,0.764985]
[1724352833973,2.3948,2615.3,2614.8,3.8243]
[1724352834171,2.3948,2615.3,2615.0,3.82407]
[1724352834380,6.21795,2615.7,2615.2,3.82379]
[1724352834579,6.21795,2615.7,2615.0,7.64795]
[1724352834808,3.82358,2615.4,2614.7,3.8245]
[1724352835005,2.3948,2615.3,2614.7,7.64889]
[1724352835188,6.21845,2615.3,2614.7,7.64882]
[1724352835402,6.21845,2615.3,2614.7,7.64883]
[1724352835604,6.21845,2615.3,2614.4,3.0]
[1724352835605,2.3948,2615.3,2614.4,3.0]
[1724352835920,3.82404,2615.1,2614.1,3.0]
[1724352836150,3.82384,2615.2,2614.5,3.8247]
[1724352836424,3.82384,2615.2,2614.7,3.82451]
[1724352836570,3.82406,2615.1,2614.5,3.8247]
[1724352836775,3.82406,2615.1,2614.5,7.64943]
[1724352836974,3.82431,2614.9,2614.4,3.82496]
[1724352837221,6.21927,2614.8,2614.2,3.82517]
[1724352837391,6.21927,2614.8,2614.2,7.65034]
[1724352838108,3.82484,2614.5,2614.0,7.65092]
[1724352838321,7.64929,2614.7,2614.1,3.82538]
[1724352839040,3.82489,2614.5,2614.0,3.82545]
[1724352839333,2.3948,2614.8,2614.2,3.82518]
[1724352839541,6.21919,2614.8,2614.3,3.8251]
[1724352839738,2.3948,2614.8,2614.2,3.82518]
[1724352839910,2.3948,2614.8,2613.8,6.82582]
[1724352839911,3.8248,2614.6,2614.0,3.82546]
[1724352840323,3.82455,2614.7,2613.8,3.0]
[1724352840632,3.82455,2614.7,2614.2,3.82524]
[1724352841035,2.3948,2614.8,2614.3,3.82502]
[1724352841330,6.21925,2614.8,2614.3,3.82502]
[1724352842043,2.3948,2614.8,2614.4,3.82484]
[1724352842691,6.20925,2615.1,2614.5,3.82471]
[1724352842939,10.03332,2615.1,2614.5,3.82471]
[1724352843093,3.82411,2615.0,2614.5,3.82471]
[1724352843292,6.20925,2615.1,2614.4,3.82484]
[1724352843293,3.82431,2614.9,2614.4,3.82484]
[1724352843944,7.64862,2614.9,2614.4,3.82484]
[1724352844341,3.8236,2615.4,2614.8,3.82429]
[1724352844496,7.30548762,2615.9,2614.1,3.0]
[1724352844497,2.3852,2615.2,2614.1,3.0]
[1724352844840,2.3852,2615.2,2614.0,3.82551]
[1724352844841,3.82395,2615.1,2614.0,3.82551]
[1724352845142,3.8243,2614.9,2614.1,3.908721]
[1724352845441,3.82445,2614.8,2614.3,3.82509]
[1724352845638,3.82419,2615.0,2614.0,3.0]
[1724352845639,3.82409,2615.0,2614.0,3.0]
[1724352845842,3.936,2615.6,2613.9,2.2617]
[1724352845843,3.82401,2615.1,2614.6,3.82464]
[1724352846013,3.82401,2615.1,2614.7,3.82451]
[1724352846242,3.82348,2615.5,2614.8,3.8243]
[1724352846565,2.3534,2615.0,2614.0,6.27871]
[1724352846731,7.64777,2615.2,2614.6,3.82456]
[1724352846930,3.82386,2615.2,2614.6,7.64916]
[1724352847137,7.64774,2615.2,2614.6,7.64914]
[1724352847440,3.82395,2615.1,2614.6,3.82456]
[1724352847745,3.82386,2615.2,2614.7,3.82451]
[1724352848266,2.3534,2615.3,2614.9,3.82423]
[1724352848465,3.82367,2615.3,2614.9,3.82423]
[1724352848759,2.2625,2615.6,2614.5,2.4867]
[1724352848760,3.82407,2615.1,2614.5,2.4867]
[1724352848960,3.82407,2615.1,2614.5,6.31144]
[1724352849163,6.08657,2615.1,2614.5,6.31144]
[1724352849514,6.08657,2615.1,2614.1,10.76132]
[1724352849515,2.2625,2615.1,2614.1,5.4187]
[1724352849718,2.2625,2615.1,2614.4,3.82488]
[1724352849719,3.8243,2614.9,2614.4,3.82488]
[1724352849940,3.8242,2615.0,2614.4,3.82488]
[1724352850139,3.8242,2615.0,2614.5,3.8248]
[1724352850488,3.82418,2615.0,2614.5,3.8248]
[1724352850689,3.8244,2614.8,2614.4,3.82493]
[1724352850887,3.8244,2614.8,2614.2,3.82522]
[1724352850888,3.82464,2614.7,2614.2,3.82522]
[1724352851088,3.8244,2614.8,2614.3,3.0]
[1724352851386,3.8241,2615.0,2614.5,3.82471]
[1724352851597,2.2625,2615.1,2614.3,3.0]
[1724352851890,2.2625,2615.1,2614.0,3.4180991]
[1724352851891,2.2625,2615.1,2614.1,3.0]
[1724352852092,3.82446,2614.8,2614.1,7.46711991]
[1724352852234,3.8246,2614.7,2614.2,3.82521]
[1724352852435,3.82477,2614.6,2614.1,6.82531]
[1724352852689,3.82477,2614.6,2614.1,10.65063]
[1724352852869,3.82477,2614.6,2614.2,3.82525]
[1724352853385,3.82492,2614.5,2614.1,3.0]
[1724352853589,3.82492,2614.5,2614.0,3.82554]
[1724352854096,2.4874,2614.7,2613.6,3.82609]
[1724352854097,3.82521,2614.3,2613.6,3.82609]
[1724352854388,3.82526,2614.2,2613.7,3.82598]
[1724352854583,6.31336,2614.2,2613.7,3.82598]
[1724352855353,2.4881,2614.2,2613.7,3.82591]
[1724352855554,2.4881,2614.2,2613.8,6.82575]
[1724352855796,7.76013,2615.0,2613.8,6.82575]
[1724352855797,2.3578,2614.5,2614.0,3.82553]
[1724352856097,2.3578,2614.5,2613.9,3.82567]
[1724352856098,2.3578,2614.5,2614.1,3.8254]
[1724352856597,2.3578,2614.5,2614.0,3.82555]
[1724352856598,6.18272,2614.5,2614.0,3.82555]
[1724352856891,2.3578,2614.5,2614.1,3.82532]
[1724352857185,2.3578,2614.5,2614.2,3.82523]
[1724352857390,2.3578,2614.5,2614.1,3.82532]
[1724352857762,2.3578,2614.5,2613.9,3.82559]
[1724352857763,3.82505,2614.4,2613.9,3.82561]
[1724352858576,2.3578,2614.5,2613.8,3.0]
[1724352858781,3.82513,2614.3,2613.8,3.82572]
[1724352859350,2.3991,2614.2,2613.4,7.36]
[1724352859690,3.936,2614.7,2613.1,12.45]
[1724352859691,3.8262,2613.6,2613.1,3.82678]
[1724352860252,3.82632,2613.5,2612.8,3.82727]
[1724352860489,3.8266,2613.3,2612.8,3.82727]
[1724352860702,2.3991,2613.6,2613.3,3.82656]
[1724352860868,2.3991,2613.6,2613.3,3.82648]
[1724352861275,6.2248,2613.9,2613.3,3.82648]
[1724352861442,3.826,2613.7,2613.3,3.82648]
[1724352862201,3.82621,2613.6,2613.1,3.82677]
[1724352862418,3.82621,2613.6,2613.1,7.65355]
[1724352862584,3.82621,2613.6,2613.1,3.82677]
[1724352862918,3.82621,2613.6,2612.9,3.82707]
[1724352862919,3.82632,2613.5,2613.0,3.82697]
[1724352863079,2.3991,2613.4,2613.0,3.827]
[1724352863280,3.8262,2613.6,2613.1,3.82679]
[1724352863480,2.3991,2613.7,2613.2,3.82671]
[1724352863684,6.26826,2614.0,2613.4,3.82635]
[1724352863931,6.26824,2614.0,2613.4,3.82635]
[1724352864142,3.82579,2613.9,2613.4,3.82635]
[1724352864785,3.82585,2613.8,2613.2,10.05839]
[1724352864983,3.82601,2613.7,2613.2,3.82658]
[1724352865240,3.82601,2613.7,2613.2,7.65322]
[1724352865539,3.82601,2613.7,2613.2,3.82658]
[1724352865704,3.82636,2613.5,2613.0,3.82692]
[1724352865905,3.82636,2613.5,2613.0,7.65386]
[1724352866251,3.82636,2613.5,2613.0,3.82692]
[1724352866791,3.82593,2613.8,2613.2,3.82661]
[1724352866987,3.82593,2613.8,2612.9,3.0]
[1724352866988,2.4283,2613.7,2612.9,3.0]
[1724352867201,3.82651,2613.4,2612.9,6.82715]
[1724352867806,3.82651,2613.4,2612.9,6.82709]
[1724352868886,3.82651,2613.4,2612.9,10.65416]
[1724352869129,3.82651,2613.4,2613.0,3.82701]
[1724352869347,3.8263,2613.5,2613.0,3.82701]
[1724352869482,3.8263,2613.5,2612.9,6.82707]
[1724352869883,3.82643,2613.4,2612.9,6.82707]
[1724352870144,2.3413,2613.3,2612.9,3.82707]
[1724352871624,2.3413,2613.3,2612.7,3.82734]
[1724352872191,3.8268,2613.2,2612.7,3.82734]
[1724352872594,2.3413,2613.3,2612.3,3.9538609]
[1724352872810,3.82623,2613.6,2613.0,3.82691]
[1724352873319,2.3413,2613.7,2613.3,3.82657]
[1724352873530,3.82595,2613.8,2613.3,7.65306]
[1724352873686,3.82595,2613.8,2613.3,3.82649]
[1724352873687,7.65192,2613.8,2613.3,3.82649]
[1724352873886,7.65187,2613.8,2613.3,3.82649]
[1724352874146,5.1113,2613.9,2613.1,3.82683]
[1724352874303,3.82623,2613.6,2613.0,3.82701]
[1724352874635,3.82629,2613.5,2612.9,3.82709]
[1724352874941,3.82629,2613.5,2612.9,3.82708]
[1724352875141,5.1113,2613.9,2612.7,3.82733]
[1724352875142,3.82669,2613.3,2612.7,3.82733]
[1724352875294,6.16786,2613.4,2612.8,3.0]
[1724352875490,3.82674,2613.2,2612.7,3.82733]
[1724352875796,3.82726,2612.9,2612.3,3.9537609]
[1724352876121,3.82739,2612.8,2612.3,3.9537609]
[1724352876320,3.82748,2612.7,2612.3,0.1258509]
[1724352877237,3.82784,2612.5,2612.3,0.1258509]
[1724352877440,3.82789,2612.4,2612.3,0.1258509]
[1724352877895,6.21979,2612.4,2612.3,0.1258509]
[1724352878332,2.3919,2612.4,2612.3,0.1258509]
[1724352879140,6.28323,2612.7,2612.3,0.1258509]
[1724352879323,3.82783,2612.5,2612.3,0.1258509]
[1724352880007,3.82717,2612.9,2612.4,3.82789]
[1724352880213,3.82717,2612.9,2612.3,3.9538009]
[1724352880541,3.82746,2612.7,2612.3,0.1258509]
[1724352880723,3.82776,2612.5,2612.3,0.1258509]
[1724352880891,3.82746,2612.7,2612.3,0.1258509]
[1724352881349,6.28272,2613.0,2612.3,0.1258509]
[1724352881508,2.4557,2613.0,2612.5,3.82773]
[1724352881706,6.59688,2613.1,2612.3,0.1258509]
[1724352881707,2.77,2613.1,2612.3,0.1258509]
[1724352881942,2.77,2613.1,2612.6,3.82749]
[1724352882314,2.77,2613.1,2612.6,7.65498]
[1724352882644,2.77,2613.1,2612.6,3.82749]
[1724352882798,2.77,2613.1,2612.6,7.65501]
[1724352883143,2.77,2613.1,2612.8,3.82721]
[1724352884806,2.77,2613.1,2612.6,3.82751]
[1724352885012,2.77,2613.1,2612.6,3.82748]
[1724352885624,2.77,2613.1,2612.3,0.1258509]
[1724352885625,6.18542,2613.0,2612.3,0.1258509]
[1724352885796,3.82763,2612.6,2612.3,0.1258509]
[1724352886403,3.82726,2612.9,2612.4,3.82782]
[1724352886645,6.18535,2613.0,2612.5,3.82773]
[1724352888352,3.82726,2612.9,2612.3,3.9538809]
[1724352888517,3.82731,2612.8,2612.3,3.9537909]
[1724352888704,3.82755,2612.7,2612.3,0.1258509]
[1724352888912,3.82761,2612.6,2612.3,0.1258509]
[1724352890002,2.3583,2613.0,2612.3,0.1258509]
[1724352890204,2.2915,2612.7,2612.3,0.1258509]
[1724352890431,3.82789,2612.4,2612.3,0.1258509]
[1724352895231,9.95888,2612.4,2612.3,0.1258509]
[1724352895428,10.50888,2612.4,2612.3,0.1258509]
[1724352898170,14.33677,2612.4,2612.3,0.1258509]
[1724352899938,10.50888,2612.4,2612.3,0.1258509]
[1724352900141,14.33677,2612.4,2612.3,0.1258509]
[1724352900379,10.50888,2612.4,2612.3,0.1258509]
[1724352902382,9.95888,2612.4,2612.3,0.1258509]
[1724352902545,10.50888,2612.4,2612.3,0.1258509]
[1724352902886,7.6556,2612.5,2612.3,0.1258509]
[1724352903181,4.51017877,2612.8,2612.3,0.1258509]
[1724352903387,3.91,2612.8,2612.3,0.37027599]
[1724352903679,3.91,2612.8,2612.3,3.9537909]
[1724352903879,3.91,2612.8,2612.4,3.82782]
[1724352904273,3.91,2612.8,2612.3,0.1258509]
[1724352905104,3.82748,2612.7,2612.3,0.1258509]
[1724352905306,3.82747,2612.7,2612.3,0.1258509]
[1724352905598,3.82769,2612.6,2612.3,0.1258509]
[1724352906136,3.91,2612.8,2612.3,3.9537509]
[1724352906448,3.91,2612.8,2612.3,4.96378999]
[1724352906648,3.91,2612.8,2612.3,3.9537509]
[1724352906879,3.91,2612.8,2612.5,3.82772]
[1724352907084,6.59695,2613.1,2612.5,3.82772]
[1724352907437,3.82702,2613.0,2612.5,3.82772]
[1724352907645,3.82718,2612.9,2612.4,3.82787]
[1724352908196,3.82781,2612.5,2612.3,0.1258509]
[1724352908969,3.82789,2612.4,2612.3,0.1258509]
[1724352909747,9.93988,2612.4,2612.3,0.1258509]
[1724352909950,18.14566,2612.4,2612.3,0.1258509]
[1724352910396,23.54638395,2612.4,2612.3,0.1258509]
[1724352911101,21.14566,2612.4,2612.3,0.1258509]
[1724352911317,23.54551681,2612.4,2612.3,0.1258509]
[1724352912309,19.71762681,2612.4,2612.3,0.1258509]
[1724352912454,23.54551681,2612.4,2612.3,0.1258509]
[1724352914408,19.71762681,2612.4,2612.3,0.1258509]
[1724352914612,17.31777,2612.4,2612.3,0.1258509]
[1724352914790,19.71799678,2612.4,2612.3,0.1258509]
[1724352915175,17.31777,2612.4,2612.3,0.1258509]
[1724352915902,19.71799678,2612.4,2612.3,0.1258509]
[1724352917713,17.43389678,2612.4,2612.3,0.1258509]
[1724352917865,15.03367,2612.4,2612.3,0.1258509]
[1724352918064,10.65578,2612.4,2612.3,0.1258509]
[1724352918265,9.65653155,2612.4,2612.3,0.1258509]
[1724352919370,11.48367,2612.4,2612.3,0.1258509]
[1724352919572,9.65695679,2612.4,2612.3,0.1258509]
[1724352919970,5.82906679,2612.4,2612.3,0.1258509]
[1724352920411,5.42877057,2612.4,2612.3,0.1258509]
[1724352920629,3.89678057,2612.4,2612.3,0.1258509]
[1724352920829,24.56246,2612.4,2612.3,0.1258509]
[1724352921117,20.73457,2612.4,2612.3,0.1258509]
[1724352921329,23.53621751,2612.4,2612.3,0.1258509]
[1724352921716,27.36410751,2612.4,2612.3,0.1258509]
[1724352921943,24.08621751,2612.4,2612.3,0.1258509]
[1724352922312,27.91410751,2612.4,2612.3,0.1258509]
[1724352922515,29.23810751,2612.4,2612.3,0.1258509]
[1724352922757,33.06755172,2612.4,2612.3,0.1258509]
[1724352922962,3.82969,2611.2,2610.8,2.312]
[1724352923109,7.65947,2611.2,2610.8,2.312]
[1724352923309,3.82982,2611.1,2610.8,2.312]
[1724352923738,3.82969,2611.2,2610.8,2.312]
[1724352924452,7.65949,2611.2,2610.8,2.312]
[1724352924752,3.82982,2611.1,2610.8,2.312]
[1724352926973,5.43105583,2611.4,2610.8,2.312]
[1724352927178,3.82917,2611.6,2611.0,3.82994]
[1724352927480,7.65837,2611.6,2611.1,3.82979]
[1724352927650,3.82926,2611.5,2610.9,3.82997]
[1724352928268,3.82939,2611.4,2610.9,3.82997]
[1724352928829,9.25994583,2611.6,2611.0,3.82994]
[1724352929034,3.8293,2611.5,2610.9,7.65996]
[1724352929336,3.82915,2611.6,2611.1,6.19728]
[1724352929986,3.82915,2611.6,2611.1,10.02701]
[1724352930334,7.65829,2611.6,2611.1,6.19723]
[1724352930530,2.77,2611.7,2611.1,6.19721]
[1724352930731,6.59901,2611.7,2611.1,6.19721]
[1724352930945,2.77,2611.7,2611.2,3.82952]
[1724352931341,6.59903,2611.7,2611.1,11.1293606]
[1724352931548,2.77,2611.7,2611.3,3.82947]
[1724352931770,6.59893,2611.7,2611.2,3.82965]
[1724352932235,2.77,2611.7,2611.2,3.82965]
[1724352932591,2.77,2611.7,2611.6,3.82907]
[1724352932907,2.77,2611.7,2611.4,6.19672]
[1724352933035,2.77,2611.7,2611.5,3.82913]
[1724352933236,2.77,2611.7,2611.6,3.82907]
[1724352933431,1.60162583,2612.1,2611.6,2.3675]
[1724352933699,1.60162583,2612.3,2611.9,6.19612]
[1724352933838,5.42953583,2612.4,2611.9,6.19612]
[1724352934037,3.82791,2612.4,2612.0,3.82848]
[1724352934370,8.19931583,2612.6,2612.0,3.8284]
[1724352934697,3.82778,2612.5,2612.0,3.8284]
[1724352934835,8.19931583,2612.6,2612.0,3.82845]
[1724352935189,3.82779,2612.5,2612.0,3.82845]
[1724352935392,3.82779,2612.5,2612.0,4.830911]
[1724352935593,3.82779,2612.5,2612.0,4.830861]
[1724352935756,8.19931583,2612.6,2612.2,3.82807]
[1724352935757,4.37162583,2612.6,2612.2,3.82807]
[1724352936095,2.77,2612.6,2612.2,3.82807]
[1724352936238,6.59763,2612.6,2612.1,2.45]
[1724352936666,6.59763,2612.6,2612.1,6.27832]
[1724352936832,8.19925583,2612.6,2612.1,7.3892321]
[1724352938084,4.37162583,2612.6,2612.2,3.80818]
[1724352938574,2.77,2612.6,2612.2,3.80818]
[1724352938778,2.77,2612.6,2612.2,4.92792321]
[1724352938979,2.77,2612.6,2612.5,3.82775]
[1724352939182,6.22816348,2613.2,2612.9,3.82707]
[1724352939183,1.60162583,2613.2,2612.9,3.82707]
[1724352939438,1.60162583,2613.3,2612.9,2.3928]
[1724352939644,3.82718,2612.9,2612.6,2.3928]
[1724352939941,3.82701,2613.0,2612.6,2.3928]
[1724352940085,7.65416,2613.0,2612.6,2.3928]
[1724352940282,1.60162583,2613.2,2612.8,3.82726]
[1724352940525,1.60162583,2613.4,2612.9,3.82707]
[1724352940706,5.42816583,2613.4,2612.7,6.22016]
[1724352941030,5.42816583,2613.4,2612.7,10.04752]
[1724352941178,5.42816583,2613.4,2612.7,7.675704]
[1724352941373,5.42816583,2613.4,2612.8,3.82728]
[1724352941374,3.82658,2613.3,2612.8,3.82728]
[1724352942284,5.42807583,2613.4,2612.8,3.82728]
[1724352942485,5.42807583,2613.4,2612.7,7.675704]
[1724352942486,3.82658,2613.3,2612.7,7.675704]
[1724352942813,3.82658,2613.3,2612.7,7.675684]
[1724352942983,5.42795583,2613.5,2612.9,2.3661]
[1724352943347,3.82601,2613.7,2613.1,3.82677]
[1724352943631,3.82618,2613.6,2613.1,3.82677]
[1724352945594,7.65241,2613.6,2613.1,3.82677]
[1724352945804,7.65241,2613.6,2613.0,2.3661]
[1724352946115,7.65241,2613.6,2613.0,6.19307]
[1724352946116,7.65243,2613.6,2613.0,6.19307]
[1724352946522,3.82629,2613.5,2613.0,6.19307]
[1724352947547,3.82629,2613.5,2613.0,2.3661]
[1724352947742,2.77,2613.8,2613.0,2.3661]
[1724352948013,3.82661,2613.3,2613.0,2.3661]
[1724352948657,3.82608,2613.7,2613.0,2.985439]
[1724352948855,3.82608,2613.7,2613.1,2.3652]
[1724352949024,3.82636,2613.5,2613.1,2.3652]
[1724352950153,7.65274,2613.5,2613.1,2.3652]
[1724352950458,3.82636,2613.5,2613.1,2.3652]
[1724352951544,3.82666,2613.3,2613.1,2.3652]
[1724352951711,7.65332,2613.3,2613.1,2.3652]
[1724352951912,3.82672,2613.2,2613.1,2.3652]
[1724352952135,3.82656,2613.4,2613.1,2.3652]
[1724352953025,3.82658,2613.3,2613.1,2.3652]
[1724352953229,3.82663,2613.3,2612.6,6.15499]
[1724352953444,7.65334,2613.3,2612.7,3.82745]
[1724352953644,7.6533,2613.3,2612.7,3.82737]
[1724352953841,7.6533,2613.3,2612.7,7.65474]
[1724352954145,7.65329,2613.3,2612.8,3.8273]
[1724352954466,3.82674,2613.2,2612.8,3.8273]
[1724352956351,2.91274447,2613.2,2612.8,3.8273]
[1724352958673,3.82652,2613.4,2612.6,2.3274]
[1724352958826,3.82652,2613.4,2612.6,3.9789]
[1724352959026,3.82652,2613.4,2612.9,7.65412]
[1724352959296,3.82624,2613.6,2612.9,3.82705]
[1724352959462,9.01974,2613.8,2613.2,3.82663]
[1724352959463,3.826,2613.7,2613.2,3.82663]
[1724352959648,6.59594,2613.8,2613.4,3.82642]
[1724352959980,2.77,2613.8,2613.4,3.82634]
[1724352960121,2.77,2613.8,2613.6,3.82611]
[1724352960735,2.77,2613.8,2613.4,7.65263]
[1724352960930,2.77,2613.8,2613.5,3.82627]
[1724352961144,2.77,2613.8,2613.4,3.82629]
[1724352962371,6.59587,2613.8,2613.3,6.21389]
[1724352963358,6.59587,2613.8,2613.3,7.217941]
[1724352964075,2.77,2613.8,2613.4,3.82642]
[1724352964485,2.77,2613.8,2613.5,3.82628]
[1724352964647,0.00191776,2614.0,2613.6,3.82606]
[1724352964847,0.00191776,2614.0,2613.8,3.82577]
[1724352965177,0.00191776,2614.0,2613.9,6.114]
[1724352965357,0.00191776,2614.0,2613.9,2.2883]
[1724352967173,0.00191776,2614.0,2613.7,2.3488]
[1724352967373,3.82752776,2614.0,2613.7,2.3488]
[1724352969290,3.82597,2613.8,2613.5,2.4662]
[1724352970192,3.82571,2613.9,2613.5,2.4662]
[1724352970391,3.82755776,2614.0,2613.5,4.3145021]
[1724352970603,7.65318776,2614.0,2613.5,8.1407721]
[1724352970804,3.82754776,2614.0,2613.5,8.1407721]
[1724352971371,7.65320776,2614.0,2613.5,8.1407721]
[1724352971571,3.82754776,2614.0,2613.5,8.1407721]
[1724352973267,7.65318776,2614.0,2613.5,8.1407721]
[1724352974113,7.65317776,2614.0,2613.5,8.1407721]
[1724352974339,3.82754776,2614.0,2613.5,8.1407721]
[1724352974615,7.65317776,2614.0,2613.5,8.1407721]
[1724352974814,7.65318776,2614.0,2613.5,8.1407721]
[1724352974967,3.82605,2613.7,2613.3,7.36]
[1724352975166,3.82584,2613.8,2613.3,7.36]
[1724352975408,3.82586,2613.8,2613.3,11.18656]
[1724352975592,3.82586,2613.8,2613.3,7.36]
[1724352975794,3.8263,2613.5,2613.3,7.36]
[1724352976600,3.82643,2613.4,2613.3,7.36]
[1724352977109,3.8263,2613.5,2613.3,7.36]
[1724352977318,3.82643,2613.4,2613.3,7.36]
[1724352977867,3.82629,2613.5,2613.3,7.36]
[1724352978519,3.82611,2613.7,2613.3,7.36]
[1724352978723,3.82611,2613.7,2613.3,9.8127]
[1724352978924,1.60354359,2614.0,2613.4,3.82629]
[1724352979095,0.00191776,2614.0,2613.6,3.82601]
[1724352979492,3.82747776,2614.0,2613.6,3.82601]
[1724352980122,0.00191776,2614.0,2613.6,3.82601]
[1724352980280,3.82748776,2614.0,2613.7,2.3869]
[1724352980479,0.00191776,2614.0,2613.7,2.3869]
[1724352980724,0.00191776,2614.0,2613.7,3.008191]
[1724352982228,0.00191776,2614.0,2613.7,6.834161]
[1724352982717,0.00191776,2614.0,2613.8,3.82583]
[1724352983123,0.00191776,2614.0,2613.9,3.8257]
[1724352983422,0.00191776,2614.0,2613.9,7.6514]
[1724352983579,0.00191776,2614.0,2613.9,10.7317691]
[1724352986292,0.00191776,2614.0,2613.9,3.0803691]
[1724352986479,0.00191776,2614.0,2613.9,6.9060691]
[1724352986679,0.00191776,2614.0,2613.9,3.0803691]
[1724352986880,0.00191776,2614.0,2613.9,2.2531]
[1724352987281,0.00191776,2614.0,2613.9,9.9045]
[1724352987484,0.00191776,2614.0,2613.9,2.2531]
[1724352987929,0.00191776,2614.0,2613.9,6.0788]
[1724352988623,0.00191776,2614.0,2613.9,2.2531]
[1724352988812,0.00191776,2614.0,2613.9,3.543583]
[1724352989320,0.00191776,2614.0,2613.9,7.369283]
[1724352989632,0.00191776,2614.0,2613.9,11.194983]
[1724353002676,0.00191776,2614.0,2613.9,1.290483]
[1724353002979,0.00191776,2614.0,2613.5,3.82617]
[1724353002980,3.82572,2613.9,2613.5,3.82617]
[1724353004479,0.00191776,2614.0,2613.5,3.82617]
[1724353004480,3.82750776,2614.0,2613.5,3.82617]
[1724353005579,3.82750776,2614.0,2613.6,3.82613]
[1724353006865,5.42913359,2614.0,2613.6,3.82613]
[1724353007179,3.82750776,2614.0,2613.6,3.82613]
[1724353007380,0.00191776,2614.0,2613.6,7.65226]
[1724353007534,1.60354359,2614.0,2613.6,3.82613]
[1724353007730,0.00191776,2614.0,2613.6,3.82613]
[1724353009553,1.60354359,2614.0,2613.6,3.82613]
[1724353010142,0.00191776,2614.0,2613.6,3.82613]
[1724353010680,1.60354359,2614.0,2613.6,7.6522]
[1724353010982,1.60354359,2614.0,2613.7,3.82598]